fUSD/lending_fUSD_20250124
["ID","MTS","AMOUNT","RATE_DAILY","PERIOD"]
[350232953,1737721846200,-500.0,0.00018474,2]
[350232954,1737721846210,-939.6,0.00018474,2]
[350232955,1737721846219,-500.0,0.00018474,2]
[350232956,1737721846229,-759.81,0.00018474,2]
[350232957,1737721846238,-500.0,0.00018474,2]
[350232958,1737721846247,-151.0,0.00018474,2]
[350232959,1737721846258,-500.0,0.00018474,2]
[350232960,1737721846267,-500.0,0.00018474,2]
[350232961,1737721846277,-500.0,0.00018474,2]
[350232962,1737721846287,-655.56,0.00018474,2]
[350232963,1737721846296,-500.0,0.00018474,2]
[350232964,1737721846306,-500.0,0.00018474,2]
[350232965,1737721846315,-500.0,0.00018474,2]
[350232966,1737721846326,-500.0,0.00018474,2]
[350232967,1737721846336,-500.0,0.00018474,2]
[350232968,1737721846346,-151.0,0.00018474,2]
[350232969,1737721846355,-151.0,0.00018474,2]
[350232970,1737721846365,-274.983415,0.00018474,2]
[350232971,1737721846375,-274.983415,0.00018474,2]
[350232972,1737721846384,-151.0,0.00018474,2]
[350232973,1737721846393,-151.0,0.00018474,2]
[350232974,1737721846403,-151.0,0.00018474,2]
[350232975,1737721846412,-151.0,0.00018474,2]
[350232976,1737721846422,-151.0,0.00018474,2]
[350232977,1737721846432,-151.0,0.00018474,2]
[350232979,1737721846441,-2360.179085,0.00018474,2]
[350232980,1737721846450,-2360.179085,0.00018474,2]
[350232981,1737721846459,-151.0,0.00018474,2]
[350232982,1737721846469,-151.0,0.00018474,2]
[350232983,1737721846478,-151.0,0.00018474,2]
[350232984,1737721846488,-151.0,0.00018474,2]
[350232985,1737721846497,-162.755205,0.00018474,2]
[350232986,1737721846507,-162.755205,0.00018474,2]
[350232987,1737721846517,-151.0,0.00018474,2]
[350232988,1737721846527,-270.3626764,0.0001849,2]
[350232989,1737721846536,-151.0,0.00018495,2]
[350232990,1737721846546,-666.0,0.00018495,2]
[350232991,1737721846556,-283609.71573299,0.00018496,2]
[350232992,1737721846565,-582.58649583,0.00018496,2]
[350232993,1737721846576,-151.0,0.00018496,2]
[350232994,1737721846585,-200.0,0.00018496,2]
[350232995,1737721846595,-152.742154,0.00018496,2]
[350232996,1737721846604,-172.164983,0.00018496,2]
[350232997,1737721846613,-172.164983,0.00018496,2]
[350232998,1737721846622,-1538.2164373,0.00018496,2]
[350232999,1737721846632,-4503.0568946,0.00018496,2]
[350233000,1737721846642,-151.0,0.00018496,2]
[350233001,1737721846652,-273.4392285,0.00018496,2]
[350233002,1737721846661,-933.47471,0.00018496,2]
[350233003,1737721846671,-151.0,0.00018496,2]
[350233004,1737721846680,-581.0553202,0.00018496,2]
[350233005,1737721846690,-274.983415,0.00018496,2]
[350233006,1737721846699,-274.983415,0.00018496,2]
[350233007,1737721846709,-151.0,0.00018496,2]
[350233008,1737721846718,-289.284353,0.00018496,2]
[350233009,1737721846727,-151.0,0.00018496,2]
[350233010,1737721846737,-151.0,0.00018496,2]
[350233011,1737721846746,-151.0,0.00018496,2]
[350233012,1737721846756,-2360.179085,0.00018496,2]
[350233013,1737721846765,-2360.179085,0.00018496,2]
[350233014,1737721846774,-151.0,0.00018496,2]
[350233015,1737721846783,-151.0,0.00018496,2]
[350233016,1737721846793,-151.0,0.00018496,2]
[350233017,1737721846802,-151.0,0.00018496,2]
[350233018,1737721846812,-151.0,0.00018496,2]
[350233019,1737721846822,-162.755205,0.00018496,2]
[350233020,1737721846831,-162.755205,0.00018496,2]
[350233021,1737721846840,-151.0,0.00018496,2]
[350233022,1737721846850,-500.0,0.00018499,2]
[350233023,1737721846859,-1000.0,0.00018499,2]
[350233024,1737721846868,-1000.0,0.00018499,2]
[350233025,1737721846877,-1000.0,0.00018499,2]
[350233026,1737721846889,-1000.0,0.00018499,2]
[350233027,1737721846898,-1000.0,0.00018499,2]
[350233028,1737721846908,-1000.0,0.00018499,2]
[350233029,1737721846918,-1000.0,0.00018499,2]
[350233030,1737721846930,-1000.0,0.00018499,2]
[350233031,1737721846939,-1000.0,0.00018499,2]
[350233032,1737721846949,-903.08055184,0.00018499,2]
[350233033,1737721846959,-224.97445946,0.000185,2]
[350233034,1737721846968,-377653.31954677,0.000185,2]
[350233035,1737721846977,-2340190.35430757,0.000185,15]
[350233036,1737721847435,-439.76000004,0.000185,15]
[350233037,1737721847456,-370.29238704,0.000185,15]
[350233038,1737721847468,-2259.71297238,0.000185,15]
[350233039,1737721847772,-881.67,0.0001847,2]
[350233040,1737721847782,-500.0,0.0001847,2]
[350233041,1737721847791,-231.18129596,0.000185,15]
[350233042,1737721847911,-415.7312,0.000137,5]
[350233043,1737721847936,-2153.2688,0.000137,5]
[350233044,1737721847945,-1437.18905197,0.00018381,2]
[350233045,1737721847956,-1543.48765369,0.000185,15]
[350233046,1737721847967,-999.24275917,0.000185,15]
[350233047,1737721848010,-6548.04768301,0.000185,15]
[350233048,1737721848022,-15015.70072785,0.000185,15]
[350233049,1737721848317,-500.0,0.00018068,2]
[350233050,1737721848327,-600.30485406,0.000185,15]
[350233051,1737721848355,-258.86399994,0.000185,15]
[350233052,1737721848366,-474.355435,0.000185,15]
[350233055,1737722663189,-191.57,0.00015567,2]
[350233056,1737722663212,-250.0,0.00017352,2]
[350233057,1737722663233,-436.43,0.00017352,2]
[350233061,1737722732167,-563.57,0.00017352,2]
[350233062,1737722732190,-167.42,0.00017432,2]
[350233063,1737722732213,-220.91,0.00017454,2]
[350233064,1737722732238,-200.43,0.00017498,2]
[350233065,1737722732258,-4000.0,0.00017519,2]
[350233066,1737722732282,-306.21,0.00017578,2]
[350233067,1737722732303,-191.57,0.00017831,2]
[350233068,1737722732324,-9392.0,0.00017951,2]
[350233069,1737722732345,-800.0,0.00018068,2]
[350233070,1737722732366,-165.9456554,0.0001813,2]
[350233071,1737722732386,-359.48438586,0.00018132,2]
[350233072,1737722732406,-438.72,0.00018329,2]
[350233073,1737722732427,-438.72,0.00018329,2]
[350233074,1737722732448,-438.72,0.00018329,2]
[350233075,1737722732468,-500.0,0.00018351,2]
[350233076,1737722732488,-500.0,0.00018352,2]
[350233077,1737722732509,-749.74170936,0.0001837,2]
[350233078,1737722732529,-5000.0,0.00018371,2]
[350233079,1737722732550,-1011.43359223,0.00018371,2]
[350233080,1737722732570,-253.42,0.00018384,2]
[350233081,1737722732590,-672.938,0.000184,2]
[350233082,1737722732610,-174.579,0.000184,2]
[350233083,1737722732630,-21273.175077,0.000184,2]
[350233084,1737722732650,-168.54539058,0.000184,2]
[350233085,1737722732670,-1000.0,0.00018407,2]
[350233086,1737722732690,-1000.0,0.00018407,2]
[350233087,1737722732710,-1000.0,0.00018407,2]
[350233088,1737722732730,-1000.0,0.00018407,2]
[350233089,1737722732750,-1000.0,0.00018407,2]
[350233090,1737722732770,-1000.0,0.00018407,2]
[350233091,1737722732790,-1000.0,0.00018407,2]
[350233092,1737722732810,-1000.0,0.00018407,2]
[350233093,1737722732830,-1000.0,0.00018407,2]
[350233094,1737722732851,-1000.0,0.00018407,2]
[350233095,1737722732872,-1015.045,0.00018407,2]
[350233096,1737722732892,-200.0,0.00018412,2]
[350233097,1737722732913,-200.0,0.00018424,2]
[350233098,1737722732933,-200.0,0.00018428,2]
[350233099,1737722732954,-438.72,0.00018466,2]
[350233100,1737722732976,-1112.18,0.00018469,2]
[350233101,1737722732997,-650.56,0.00018469,2]
[350233102,1737722733018,-500.0,0.00018469,2]
[350233103,1737722733040,-533.51,0.00018469,2]
[350233104,1737722733062,-3215.58,0.00018469,2]
[350233105,1737722733084,-1384.25,0.00018469,2]
[350233106,1737722733106,-500.0,0.00018469,2]
[350233107,1737722733131,-1751.09,0.00018469,2]
[350233108,1737722733157,-1296.38,0.00018469,2]
[350233109,1737722733180,-823.03,0.00018469,2]
[350233110,1737722733205,-1576.26,0.00018469,2]
[350233111,1737722733228,-500.0,0.00018469,2]
[350233112,1737722733249,-500.0,0.00018469,2]
[350233113,1737722733271,-1632.84,0.00018469,2]
[350233114,1737722733294,-500.0,0.00018469,2]
[350233115,1737722733318,-500.0,0.00018469,2]
[350233116,1737722733341,-1.04742747,0.00018469,2]
[350233119,1737722844083,-249.07,0.00018068,2]
[350233120,1737722844104,-248.4,0.00018068,2]
[350233121,1737722844126,-700.0,0.00018068,2]
[350233122,1737722844147,-1034.2582974,0.000181,2]
[350233123,1737722844169,-1014.24791508,0.000181,2]
[350233124,1737722844190,-247.76,0.000181,2]
[350233125,1737722844211,-246.61,0.000181,2]
[350233126,1737722844231,-246.8,0.000181,2]
[350233127,1737722844254,-251.19,0.000181,2]
[350233128,1737722844275,-165.9456554,0.0001813,2]
[350233129,1737722844297,-3000.0,0.0001831,2]
[350233130,1737722844318,-4143.9329,0.00018372,2]
[350233131,1737722844341,-498.95257253,0.00018469,2]
[350233132,1737722844363,-1135.35,0.00018469,2]
[350233133,1737722844384,-500.0,0.00018469,2]
[350233134,1737722844406,-2030.48,0.00018469,2]
[350233135,1737722844427,-406.86646,0.00018469,2]
[350233136,1737722844451,-2791.24,0.00018469,2]
[350233137,1737722844474,-500.0,0.00018469,2]
[350233138,1737722844497,-1180.58,0.00018469,2]
[350233139,1737722844519,-500.0,0.00018469,2]
[350233140,1737722844544,-4191.16,0.00018469,2]
[350233141,1737722844568,-500.0,0.00018469,2]
[350233142,1737722844591,-1227.62,0.00018469,2]
[350233143,1737722844613,-500.0,0.00018469,2]
[350233144,1737722844635,-654.14,0.00018469,2]
[350233145,1737722844658,-500.0,0.00018469,2]
[350233146,1737722844681,-989.2,0.00018469,2]
[350233147,1737722844704,-759.02,0.00018469,2]
[350233148,1737722844727,-500.0,0.00018469,2]
[350233149,1737722844749,-500.0,0.00018469,2]
[350233150,1737722844771,-3782.49,0.00018469,2]
[350233151,1737722844794,-1724.83,0.00018469,2]
[350233152,1737722844815,-500.0,0.00018469,2]
[350233153,1737722844836,-473.07184322,0.00018469,2]
[350233154,1737722844857,-500.0,0.00018469,2]
[350233155,1737722844878,-197.13401883,0.00018469,2]
[350233156,1737722844898,-500.00000088,0.00018469,2]
[350233157,1737722844920,-731.15,0.00018469,2]
[350233158,1737722844941,-500.0,0.00018469,2]
[350233159,1737722844962,-200.0,0.00018469,2]
[350233160,1737722844982,-163.79842831,0.00018469,2]
[350233161,1737722845362,157.58,0.00010137,2]
[350233162,1737722848136,-336.20157169,0.00018469,2]
[350233163,1737722848161,-2438.8,0.00018469,2]
[350233164,1737722848188,-500.0,0.00018469,2]
[350233165,1737722848211,-500.0,0.00018469,2]
[350233166,1737722848233,-500.0,0.00018469,2]
[350233167,1737722848258,-500.0,0.00018469,2]
[350233168,1737722848281,-500.0,0.00018469,2]
[350233169,1737722848305,-500.0,0.00018469,2]
[350233170,1737722848328,-1118.69677906,0.00018469,2]
[350233172,1737722899014,-65367.0,0.000185,15]
[350233177,1737723032252,-915.35153667,0.00017454,2]
[350233178,1737723032369,-84.64846333,0.00017454,2]
[350233179,1737723032380,-250.0,0.00017454,2]
[350233180,1737723032389,-1037.11389874,0.000181,2]
[350233181,1737723032399,-279.31764842,0.000181,2]
[350233182,1737723032418,-345.62857128,0.000181,2]
[350233183,1737723032429,-332.0,0.000181,2]
[350233184,1737723032441,-66.26591369,0.000181,2]
[350233185,1737723032450,-249.83,0.000181,2]
[350233186,1737723032461,-1115.5236456,0.0001813,2]
[350233187,1737723032471,-1110.01938607,0.0001813,2]
[350233188,1737723032482,-910.29023298,0.00018371,2]
[350233189,1737723032492,-178.48118991,0.000184,2]
[350233190,1737723032502,-126.15322094,0.00018469,2]
[350233191,1737723032512,-500.0,0.00018469,2]
[350233192,1737723032522,-500.0,0.00018469,2]
[350233193,1737723032532,-1768.05,0.00018469,2]
[350233194,1737723032542,-524.72915458,0.00018469,2]
[350233195,1737723032552,-2714.04,0.00018469,2]
[350233196,1737723032561,-500.0,0.00018469,2]
[350233197,1737723032570,-500.0,0.00018469,2]
[350233198,1737723032579,-637.29034875,0.00018469,2]
[350233199,1737723032589,-343.9516765,0.00018469,2]
[350233200,1737723032599,-841.05,0.00018469,2]
[350233201,1737723032609,-472.27440706,0.00018469,2]
[350233202,1737723032620,-500.0,0.00018469,2]
[350233203,1737723032630,-500.0,0.00018469,2]
[350233204,1737723032640,-500.0,0.00018469,2]
[350233205,1737723032650,-500.0,0.00018469,2]
[350233206,1737723032660,-500.0,0.00018469,2]
[350233207,1737723032669,-957.66,0.00018469,2]
[350233208,1737723032679,-500.0,0.00018469,2]
[350233209,1737723032688,-500.0,0.00018469,2]
[350233210,1737723032697,-387.79842223,0.00018469,2]
[350233212,1737723032707,-500.0,0.00018469,2]
[350233214,1737723032717,-684.69,0.00018469,2]
[350233216,1737723032727,-1283.14,0.00018469,2]
[350233219,1737723032736,-1052.43,0.00018469,2]
[350233221,1737723032746,-307.44711046,0.00018469,2]
[350233223,1737723032755,-500.0,0.00018469,2]
[350233225,1737723032765,-500.0,0.00018469,2]
[350233227,1737723032774,-500.0,0.00018469,2]
[350233229,1737723032783,-3081.6,0.00018469,2]
[350233231,1737723032792,-500.0,0.00018469,2]
[350233233,1737723032802,-1339.16,0.00018469,2]
[350233235,1737723032812,-500.0,0.00018469,2]
[350233237,1737723032822,-1844.61,0.00018469,2]
[350233239,1737723032831,-500.0,0.00018469,2]
[350233241,1737723032840,-500.0,0.00018469,2]
[350233243,1737723032850,-873.27,0.00018469,2]
[350233245,1737723032859,-239.04785916,0.00018469,2]
[350233246,1737723032870,-3009.25,0.00018469,2]
[350233247,1737723032880,-500.0,0.00018469,2]
[350233248,1737723032890,-1065.84,0.00018469,2]
[350233249,1737723032900,-1678.13,0.00018469,2]
[350233250,1737723032909,-500.0,0.00018469,2]
[350233251,1737723032919,-500.0,0.00018469,2]
[350233252,1737723032928,-500.0,0.00018469,2]
[350233253,1737723032938,-515.02,0.00018469,2]
[350233254,1737723032948,-500.0,0.00018469,2]
[350233255,1737723032958,-500.0,0.00018469,2]
[350233256,1737723032967,-500.0,0.00018469,2]
[350233257,1737723032977,-1510.58,0.00018469,2]
[350233258,1737723032986,-500.0,0.00018469,2]
[350233259,1737723032995,-500.0,0.00018469,2]
[350233260,1737723033006,-695.87,0.00018469,2]
[350233261,1737723033015,-2248.41,0.00018469,2]
[350233262,1737723033025,-511.28,0.00018469,2]
[350233263,1737723033034,-500.0,0.00018469,2]
[350233264,1737723033044,-500.0,0.00018469,2]
[350233265,1737723033054,-500.0,0.00018469,2]
[350233266,1737723033064,-1265.3,0.00018469,2]
[350233267,1737723033073,-500.0,0.00018469,2]
[350233268,1737723033083,-1326.57,0.00018469,2]
[350233269,1737723033093,-1088.04,0.00018469,2]
[350233270,1737723033103,-500.0,0.00018469,2]
[350233271,1737723033113,-4329.02,0.00018469,2]
[350233272,1737723033124,-500.0,0.00018469,2]
[350233273,1737723033134,-500.0,0.00018469,2]
[350233274,1737723033143,-3185.29,0.00018469,2]
[350233275,1737723033153,-500.0,0.00018469,2]
[350233276,1737723033163,-500.0,0.00018469,2]
[350233277,1737723033172,-500.0,0.00018469,2]
[350233278,1737723033182,-500.0,0.00018469,2]
[350233279,1737723033191,-2674.94,0.00018469,2]
[350233280,1737723033201,-1242.37,0.00018469,2]
[350233281,1737723033211,-3776.37,0.00018469,2]
[350233282,1737723033222,-500.0,0.00018469,2]
[350233283,1737723033232,-788.74,0.00018469,2]
[350233284,1737723033241,-500.0,0.00018469,2]
[350233285,1737723033251,-1199.7,0.00018469,2]
[350233286,1737723033262,-445.02431043,0.00018469,2]
[350233287,1737723033272,-413.89754286,0.00018469,2]
[350233288,1737723033282,-1564.8,0.00018469,2]
[350233289,1737723033291,-1607.77,0.00018469,2]
[350233290,1737723033303,-500.0,0.00018469,2]
[350233291,1737723033313,-500.0,0.00018469,2]
[350233292,1737723033323,-500.0,0.00018469,2]
[350233293,1737723033333,-2766.18,0.00018469,2]
[350233294,1737723033342,-500.0,0.00018469,2]
[350233295,1737723033352,-628.64,0.00018469,2]
[350233296,1737723033363,-5176.74,0.00018469,2]
[350233297,1737723033373,-597.44670096,0.00018469,2]
[350233298,1737723033384,-947.98,0.00018469,2]
[350233299,1737723033395,-500.0,0.00018469,2]
[350233300,1737723033405,-500.0,0.00018469,2]
[350233301,1737723033414,-1945.88,0.00018469,2]
[350233302,1737723033424,-489.15548484,0.00018469,2]
[350233303,1737723033434,-500.0,0.00018469,2]
[350233304,1737723033444,-500.0,0.00018469,2]
[350233305,1737723033454,-2081.44,0.00018469,2]
[350233306,1737723033464,-1131.39,0.00018469,2]
[350233307,1737723033474,-500.0,0.00018469,2]
[350233308,1737723033484,-500.0,0.00018469,2]
[350233309,1737723033494,-500.0,0.00018469,2]
[350233310,1737723033503,-921.68,0.00018469,2]
[350233311,1737723033513,-1652.96,0.00018469,2]
[350233312,1737723033523,-612.19028352,0.00018469,2]
[350233313,1737723033532,-844.93,0.00018469,2]
[350233314,1737723033542,-718.28,0.00018469,2]
[350233315,1737723033551,-4016.52,0.00018469,2]
[350233316,1737723033561,-500.0,0.00018469,2]
[350233317,1737723033570,-500.0,0.00018469,2]
[350233318,1737723033580,-1176.47,0.00018469,2]
[350233319,1737723033590,-247.97,0.00018469,2]
[350233320,1737723033599,-254.94,0.00018469,2]
[350233321,1737723033609,-245.48,0.00018469,2]
[350233322,1737723033618,-508.28829052,0.0001847,2]
[350233323,1737723033628,-500.0,0.0001847,2]
[350233324,1737723033637,-500.0,0.0001847,2]
[350233325,1737723033647,-500.0,0.0001847,2]
[350233326,1737723033656,-500.0,0.0001847,2]
[350233327,1737723033666,-500.0,0.0001847,2]
[350233328,1737723033675,-500.0,0.0001847,2]
[350233329,1737723033685,-500.0,0.0001847,2]
[350233330,1737723033695,-500.0,0.0001847,2]
[350233331,1737723033704,-522.64785249,0.0001847,2]
[350233332,1737723033714,-500.0,0.0001847,2]
[350233333,1737723033723,-444.19317762,0.0001847,2]
[350233334,1737723033733,-500.0,0.0001847,2]
[350233335,1737723033743,-500.0,0.0001847,2]
[350233336,1737723033752,-500.0,0.0001847,2]
[350233337,1737723033763,-500.0,0.0001847,2]
[350233338,1737723033772,-500.0,0.0001847,2]
[350233339,1737723033782,-1131.84,0.0001847,2]
[350233340,1737723033792,-500.0,0.0001847,2]
[350233341,1737723033801,-500.0,0.0001847,2]
[350233342,1737723033811,-689.98,0.0001847,2]
[350233343,1737723033820,-579.28535681,0.0001847,2]
[350233344,1737723033831,-500.0,0.0001847,2]
[350233345,1737723033840,-500.0,0.0001847,2]
[350233346,1737723033850,-500.0,0.0001847,2]
[350233347,1737723033859,-500.0,0.0001847,2]
[350233348,1737723033869,-273.45771547,0.0001847,2]
[350233349,1737723033879,-500.0,0.0001847,2]
[350233350,1737723033889,-500.0,0.0001847,2]
[350233351,1737723033899,-500.0,0.0001847,2]
[350233352,1737723033908,-500.0,0.0001847,2]
[350233353,1737723033918,-500.0,0.0001847,2]
[350233354,1737723033927,-500.0,0.0001847,2]
[350233355,1737723033937,-551.0,0.0001847,2]
[350233356,1737723033946,-500.0,0.0001847,2]
[350233357,1737723033955,-500.0,0.0001847,2]
[350233358,1737723033964,-500.0,0.0001847,2]
[350233359,1737723033973,-500.0,0.0001847,2]
[350233360,1737723033982,-513.23315404,0.0001847,2]
[350233361,1737723033992,-616.67,0.0001847,2]
[350233362,1737723034001,-500.0,0.0001847,2]
[350233363,1737723034011,-500.0,0.0001847,2]
[350233364,1737723034031,-500.0,0.0001847,2]
[350233365,1737723034040,-500.0,0.0001847,2]
[350233366,1737723034050,-500.0,0.0001847,2]
[350233367,1737723034059,-500.0,0.0001847,2]
[350233368,1737723034069,-500.0,0.0001847,2]
[350233369,1737723034207,-643.5,0.0001847,2]
[350233370,1737723034218,-500.0,0.0001847,2]
[350233371,1737723034232,-500.0,0.0001847,2]
[350233372,1737723034242,-672.57,0.0001847,2]
[350233373,1737723034251,-500.0,0.0001847,2]
[350233374,1737723034261,-590.22,0.0001847,2]
[350233375,1737723034270,-500.0,0.0001847,7]
[350233376,1737723034281,-500.0,0.0001847,2]
[350233377,1737723034290,-1064.78,0.0001847,2]
[350233378,1737723034299,-299.60229819,0.0001847,2]
[350233379,1737723034312,-500.0,0.0001847,2]
[350233380,1737723034322,-500.0,0.0001847,2]
[350233381,1737723034331,-261.702844,0.0001847,2]
[350233382,1737723034341,-500.0,0.0001847,2]
[350233383,1737723034350,-500.0,0.0001847,2]
[350233384,1737723034360,-1276.14,0.0001847,2]
[350233385,1737723034369,-689.28,0.0001847,2]
[350233386,1737723034379,-500.0,0.0001847,2]
[350233387,1737723034389,-500.0,0.0001847,2]
[350233388,1737723034398,-500.0,0.0001847,2]
[350233389,1737723034407,-852.42,0.0001847,2]
[350233390,1737723034416,-354.18967364,0.0001847,2]
[350233391,1737723034425,-500.0,0.0001847,2]
[350233392,1737723034435,-648.09,0.0001847,2]
[350233393,1737723034445,-945.88,0.0001847,2]
[350233394,1737723034454,-644.09,0.0001847,2]
[350233395,1737723034463,-878.43,0.0001847,2]
[350233396,1737723034473,-500.0,0.0001847,2]
[350233397,1737723034482,-500.0,0.0001847,2]
[350233398,1737723034493,-598.96,0.0001847,2]
[350233399,1737723034503,-997.58,0.0001847,2]
[350233400,1737723034512,-578.5,0.0001847,2]
[350233401,1737723034522,-500.0,0.0001847,2]
[350233402,1737723034531,-500.0,0.0001847,2]
[350233403,1737723034542,-500.0,0.0001847,2]
[350233404,1737723034552,-500.0,0.0001847,2]
[350233405,1737723034562,-500.0,0.0001847,2]
[350233406,1737723034571,-500.0,0.0001847,2]
[350233407,1737723034581,-500.0,0.0001847,2]
[350233408,1737723034591,-500.0,0.0001847,2]
[350233409,1737723034600,-500.0,0.0001847,2]
[350233410,1737723034610,-500.0,0.0001847,2]
[350233411,1737723034620,-500.0,0.0001847,2]
[350233412,1737723034630,-500.0,0.0001847,2]
[350233413,1737723034639,-853.03,0.0001847,2]
[350233414,1737723034649,-500.0,0.0001847,2]
[350233415,1737723034659,-500.0,0.0001847,2]
[350233416,1737723034669,-500.0,0.0001847,2]
[350233417,1737723034678,-500.0,0.0001847,2]
[350233418,1737723034688,-500.0,0.0001847,2]
[350233419,1737723034697,-255.95952512,0.0001847,2]
[350233420,1737723034706,-542.96616277,0.0001847,2]
[350233421,1737723034715,-500.0,0.0001847,2]
[350233422,1737723034725,-500.0,0.0001847,2]
[350233423,1737723034735,-726.2,0.0001847,2]
[350233424,1737723034744,-500.0,0.0001847,2]
[350233425,1737723034753,-944.76,0.0001847,2]
[350233426,1737723034763,-500.0,0.0001847,2]
[350233427,1737723034772,-500.0,0.0001847,2]
[350233428,1737723034781,-1114.8,0.0001847,2]
[350233429,1737723034791,-500.0,0.0001847,2]
[350233430,1737723034802,-500.0,0.0001847,2]
[350233431,1737723034811,-500.0,0.0001847,2]
[350233432,1737723034820,-500.0,0.0001847,2]
[350233433,1737723034829,-261.52172399,0.0001847,2]
[350233434,1737723034839,-500.0,0.0001847,2]
[350233435,1737723034848,-500.0,0.0001847,2]
[350233436,1737723034858,-500.0,0.0001847,2]
[350233437,1737723034876,-500.0,0.0001847,2]
[350233438,1737723034889,-500.0,0.0001847,2]
[350233439,1737723034899,-500.0,0.0001847,2]
[350233440,1737723034910,-500.0,0.0001847,2]
[350233441,1737723034920,-500.0,0.0001847,2]
[350233442,1737723034930,-500.0,0.0001847,2]
[350233443,1737723034940,-500.0,0.0001847,2]
[350233444,1737723034951,-500.0,0.0001847,2]
[350233445,1737723034960,-500.0,0.0001847,2]
[350233446,1737723034970,-505.56169964,0.0001847,2]
[350233447,1737723034981,-500.0,0.0001847,2]
[350233448,1737723034991,-500.0,0.0001847,2]
[350233449,1737723035001,-500.0,0.0001847,2]
[350233450,1737723035011,-500.0,0.0001847,2]
[350233451,1737723035020,-500.0,0.0001847,2]
[350233452,1737723035030,-500.0,0.0001847,2]
[350233453,1737723035039,-500.0,0.0001847,2]
[350233454,1737723035049,-500.0,0.0001847,2]
[350233455,1737723035059,-500.0,0.0001847,2]
[350233456,1737723035069,-500.0,0.0001847,2]
[350233457,1737723035079,-1230.54,0.0001847,2]
[350233458,1737723035088,-500.0,0.0001847,2]
[350233459,1737723035098,-500.0,0.0001847,2]
[350233460,1737723035107,-944.05,0.0001847,2]
[350233461,1737723035117,-506.16033774,0.0001847,2]
[350233462,1737723035127,-500.0,0.0001847,2]
[350233463,1737723035136,-500.0,0.0001847,2]
[350233464,1737723035145,-500.0,0.0001847,2]
[350233465,1737723035155,-500.0,0.0001847,2]
[350233466,1737723035165,-500.0,0.0001847,2]
[350233467,1737723035174,-500.0,0.0001847,2]
[350233468,1737723035183,-1227.78,0.0001847,2]
[350233469,1737723035193,-500.0,0.0001847,2]
[350233470,1737723035203,-1105.35,0.0001847,2]
[350233471,1737723035213,-500.0,0.0001847,2]
[350233472,1737723035227,-500.0,0.0001847,2]
[350233473,1737723035237,-500.0,0.0001847,2]
[350233474,1737723035247,-500.0,0.0001847,2]
[350233475,1737723035257,-500.0,0.0001847,2]
[350233476,1737723035268,-500.0,0.0001847,2]
[350233477,1737723035278,-500.0,0.0001847,2]
[350233478,1737723035288,-500.0,0.0001847,2]
[350233479,1737723035299,-500.0,0.0001847,2]
[350233480,1737723035309,-500.0,0.0001847,2]
[350233481,1737723035319,-500.0,0.0001847,2]
[350233482,1737723035329,-500.0,0.0001847,2]
[350233483,1737723035339,-500.0,0.0001847,2]